bitfinex/quotes_ETHUSD_20251214
["timestamp","ask_amount","ask_price","bid_price","bid_amount"]
[1765713776853,0.82007406,3073.9,3073.8,0.9908]
[1765713777139,3.25256139,3074.5,3073.8,0.9908]
[1765713777310,1.40036251,3074.4,3073.9,0.4975]
[1765713777509,0.29788722,3074.3,3073.8,0.002]
[1765713777735,0.29788722,3074.2,3073.8,0.002]
[1765713777937,1.19876338,3074.4,3073.8,0.002]
[1765713777938,0.29788722,3074.1,3073.8,0.002]
[1765713778139,0.29788722,3074.3,3073.8,3.75278776]
[1765713778333,0.87836251,3074.4,3074.3,0.6638]
[1765713778531,1.40036251,3074.4,3074.3,0.6638]
[1765713778738,0.29788722,3074.4,3074.3,1.1613]
[1765713779047,0.522,3074.4,3074.3,4.41403361]
[1765713779245,0.522,3074.4,3074.3,0.6638]
[1765713779618,0.522,3074.4,3074.3,0.4729]
[1765713779845,0.29796748,3074.7,3074.3,0.9704]
[1765713780046,0.29796748,3074.7,3074.6,0.4729]
[1765713780256,0.001,3074.9,3074.6,0.4729]
[1765713780550,0.001,3074.9,3074.8,0.4729]
[1765713780744,0.523,3074.9,3074.8,0.4729]
[1765713781068,0.001,3074.9,3074.8,4.6449175]
[1765713781624,0.001,3076.0,3075.0,0.58047529]
[1765713781831,0.001,3076.0,3075.9,0.6574]
[1765713782243,0.001,3076.0,3075.9,1.1549]
[1765713783056,0.001,3076.0,3075.9,4.40598098]
[1765713783218,0.001,3076.0,3075.9,5.17170481]
[1765713783723,0.001,3076.0,3075.9,1.1549]
[1765713783927,0.001,3076.0,3075.6,0.1845]
[1765713784150,0.001,3076.0,3075.6,0.682]
[1765713784353,0.405504,3075.8,3075.1,0.1845]
[1765713784556,0.405504,3075.6,3074.5,0.4975]
[1765713784718,0.405504,3075.2,3074.5,0.4975]
[1765713784947,1.21289345,3075.1,3074.5,0.4975]
[1765713785642,1.21289345,3075.1,3074.1,0.1909]
[1765713785842,1.21289345,3075.1,3074.1,0.6884]
[1765713786253,0.405504,3075.0,3074.2,0.4975]
[1765713786437,0.79918051,3075.0,3074.2,0.4975]
[1765713786644,0.2012074,3074.9,3074.2,0.4975]
[1765713786947,6.50448808,3074.8,3074.2,0.4975]
[1765713787157,3.25224404,3074.8,3074.2,0.4975]
[1765713787373,6.50448808,3074.8,3074.1,0.1909]
[1765713787556,6.60077617,3074.8,3074.1,0.1909]
[1765713787854,0.68019836,3074.7,3074.1,0.6884]
[1765713788176,0.405504,3074.5,3073.8,0.002]
[1765713788338,0.09628809,3074.5,3073.8,0.002]
[1765713788543,0.50179209,3074.5,3073.8,0.002]
[1765713788853,3.25266718,3074.4,3073.9,0.4975]
[1765713789060,0.37544593,3074.3,3073.9,0.4975]
[1765713789252,0.522,3074.2,3073.9,0.4975]
[1765713789660,0.522,3074.2,3073.8,0.002]
[1765713790248,0.522,3074.2,3074.1,0.6638]
[1765713790576,3.25256986,3074.5,3074.1,0.6638]
[1765713790771,3.25277298,3074.3,3073.8,0.4995]
[1765713790975,0.522,3074.2,3073.8,0.4995]
[1765713791557,0.522,3074.2,3073.8,0.002]
[1765713792059,0.61828809,3074.2,3073.8,0.002]
[1765713792564,0.522,3074.2,3073.8,0.002]
[1765713792874,3.25309043,3074.0,3073.8,0.002]
[1765713793074,3.63059947,3074.0,3073.8,0.002]
[1765713793282,0.37750904,3074.0,3073.8,0.002]
[1765713794175,0.37750904,3074.0,3073.9,0.4729]
[1765713794871,0.89950904,3074.0,3073.9,0.4729]
[1765713795480,4.15259947,3074.0,3073.9,0.4729]
[1765713795677,0.89950904,3074.0,3073.9,0.4729]
[1765713795876,0.522,3074.0,3073.9,0.4729]
[1765713796182,3.77509043,3074.0,3073.9,0.4729]
[1765713796775,0.522,3074.0,3073.9,0.4729]
[1765713796977,0.58047529,3074.3,3073.9,0.9704]
[1765713797178,0.522,3074.2,3073.8,0.002]
[1765713797583,3.25298461,3074.1,3073.8,0.002]
[1765713797764,3.96539048,3074.1,3073.8,0.002]
[1765713798279,7.21837509,3074.1,3073.8,0.002]
[1765713798758,0.5437,3073.9,3073.8,0.002]
[1765713798959,0.949204,3073.9,3073.8,0.002]
[1765713799162,1.412204,3073.9,3073.8,0.002]
[1765713799356,3.41141354,3073.9,3073.8,0.002]
[1765713799557,5.6546098,3073.9,3073.8,0.002]
[1765713799754,0.9713992,3073.9,3073.8,0.002]
[1765713799964,3.77519626,3073.9,3073.8,0.002]
[1765713800177,5.73387555,3073.9,3073.8,0.002]
[1765713800665,5.21187555,3073.9,3073.8,0.002]
[1765713800868,5.73387555,3073.9,3073.8,0.002]
[1765713801086,6.03130101,3073.9,3073.8,0.002]
[1765713801292,7.00447017,3073.9,3073.8,0.002]
[1765713801591,6.96380522,3073.9,3073.8,0.002]
[1765713802794,10.76503312,3073.9,3073.8,0.002]
[1765713802998,10.76503312,3073.9,3072.6,0.002]
[1765713802999,0.405504,3073.6,3072.6,0.002]
[1765713803160,0.655204,3072.7,3072.6,0.002]
[1765713803361,1.177204,3072.7,3072.6,0.002]
[1765713803655,4.24044604,3072.7,3072.6,0.002]
[1765713803891,2.25745836,3072.7,3072.6,0.002]
[1765713804096,1.10247529,3072.7,3072.6,0.4749]
[1765713804268,0.405504,3073.1,3072.6,0.4749]
[1765713804473,0.405504,3073.1,3072.6,0.9724]
[1765713804474,0.522,3073.0,3072.6,0.9724]
[1765713804673,0.522,3072.9,3072.6,0.9724]
[1765713804869,0.98597929,3073.1,3072.7,0.4975]
[1765713805072,0.522,3072.8,3072.7,0.4975]
[1765713805263,1.00447607,3073.1,3072.6,0.002]
[1765713805462,1.00447607,3073.1,3072.7,0.4966]
[1765713805774,0.522,3073.0,3072.7,0.4966]
[1765713806084,1.00447607,3073.1,3072.7,0.4966]
[1765713806279,0.522,3073.0,3072.7,0.4966]
[1765713806995,3.34941916,3074.0,3072.9,0.4993]
[1765713807201,0.09628809,3075.8,3073.0,0.4993]
[1765713807202,3.77519626,3073.9,3073.0,0.4993]
[1765713807491,3.77519626,3073.9,3073.1,0.6505]
[1765713807694,1.28330551,3073.8,3073.1,0.6505]
[1765713808070,1.28330551,3073.8,3073.1,0.1825]
[1765713808399,3.25306555,3074.1,3073.7,0.4993]
[1765713808598,0.522,3074.0,3073.7,0.4993]
[1765713808764,0.522,3073.9,3073.7,0.9673]
[1765713808966,0.09628809,3074.4,3073.7,0.468]
[1765713808967,3.25279259,3074.3,3073.7,0.468]
[1765713809167,0.522,3074.2,3073.7,0.468]
[1765713809461,0.522,3074.1,3073.7,0.468]
[1765713809682,0.58047529,3074.1,3073.7,0.468]
[1765713809886,3.8334892,3074.1,3074.0,0.4993]
[1765713810093,4.3554892,3074.1,3074.0,0.4993]
[1765713810295,0.522,3074.1,3074.0,0.4993]
[1765713810587,1.10247529,3074.1,3074.0,0.4993]
[1765713810790,0.522,3074.1,3074.0,0.4993]
[1765713810994,0.001,3074.6,3074.0,0.9673]
[1765713811293,1.10247529,3074.5,3073.5,0.468]
[1765713811487,0.85379462,3074.4,3073.5,0.468]
[1765713811683,3.25277298,3074.3,3073.5,3.72161146]
[1765713812382,0.81313629,3074.4,3074.2,0.4993]
[1765713812586,0.522,3074.3,3074.2,0.4993]
[1765713813365,3.25257914,3074.5,3074.2,0.4993]
[1765713813565,0.522,3074.4,3074.2,0.4993]
[1765713813793,0.001,3074.6,3074.4,0.4993]
[1765713814092,0.001,3074.6,3074.5,0.4993]
[1765713814394,0.523,3074.6,3074.5,0.4993]
[1765713814595,0.523,3074.6,3074.5,0.9673]
[1765713814893,0.001,3074.6,3074.5,0.9673]
[1765713815893,0.001,3074.6,3074.5,4.80033668]
[1765713816061,0.001,3074.6,3074.5,34.80033668]
[1765713816793,0.001,3074.6,3074.5,35.20584068]
[1765713817674,0.001,3074.6,3074.5,17.79384068]
[1765713817876,0.001,3074.6,3074.5,35.72784068]
[1765713818891,0.001,3074.6,3074.5,5.72784068]
[1765713819097,0.001,3074.6,3074.5,36.63552151]
[1765713819973,0.001,3074.6,3074.5,36.11352151]
[1765713820169,0.001,3074.6,3074.5,12.57952151]
[1765713821001,0.001,3074.6,3074.5,36.23001751]
[1765713821996,0.001,3074.6,3074.5,36.63552151]
[1765713823008,0.001,3074.6,3074.5,36.11352151]
[1765713823205,0.001,3074.6,3074.5,36.63552151]
[1765713826128,0.001,3074.6,3074.5,36.11352151]
[1765713826308,0.001,3074.6,3074.5,36.63552151]
[1765713827172,0.001,3074.6,3074.5,9.95401751]
[1765713828100,0.001,3074.6,3074.5,22.19901751]
[1765713828293,0.001,3074.6,3074.5,10.13201751]
[1765713828623,0.001,3074.6,3074.5,4.80033668]
[1765713830312,0.001,3074.6,3074.5,3.75186139]
[1765713830690,0.001,3074.6,3074.5,4.33233668]
[1765713831095,0.001,3074.6,3074.5,4.80033668]
[1765713831480,0.001,3074.6,3074.5,3.75186139]
[1765713831797,0.001,3074.6,3074.5,3.83303668]
[1765713832183,0.4713,3074.6,3074.5,3.25256139]
[1765713833516,0.001,3074.6,3074.5,3.25256139]
[1765713834513,0.001,3074.6,3074.3,0.58047529]
[1765713836904,0.001,3074.6,3074.4,3.25266718]
[1765713837699,0.001,3074.6,3074.5,0.4934]
[1765713837898,0.001,3074.6,3074.5,0.9498]
[1765713838101,0.001,3074.6,3074.5,0.4934]
[1765713838593,0.001,3074.6,3074.4,3.25266718]
[1765713840021,0.001,3074.6,3074.3,0.58047529]
[1765713840317,0.001,3074.6,3074.3,3.25277298]
[1765713840518,0.001,3074.6,3074.5,0.4934]
[1765713841017,0.001,3074.6,3074.5,0.9498]
[1765713841217,0.001,3074.6,3074.5,32.16054056]
[1765713841797,0.001,3074.6,3074.5,20.24854056]
[1765713842392,0.001,3074.6,3074.5,23.50110195]
[1765713842892,0.001,3074.6,3074.5,35.99357724]
[1765713845827,0.001,3075.1,3074.6,32.93197929]
[1765713846032,0.001,3075.1,3075.0,31.47937929]
[1765713846411,0.001,3075.1,3075.0,32.45777929]
[1765713846591,0.001,3075.1,3075.0,35.70981181]
[1765713847931,0.001,3075.1,3075.0,36.07007111]
[1765713848898,0.001,3075.1,3075.0,6.07007111]
[1765713849117,0.001,3075.1,3075.0,36.89183824]
[1765713849319,0.001,3075.1,3075.0,36.87530767]
[1765713849519,0.001,3075.1,3075.0,36.51504837]
[1765713849904,0.001,3075.1,3075.0,36.87530767]
[1765713850307,0.001,3075.1,3075.0,35.99304837]
[1765713850511,0.001,3075.1,3075.0,36.51404837]
[1765713851810,0.001,3075.1,3075.0,35.58754437]
[1765713852024,0.001,3075.1,3075.0,36.10854437]
[1765713852220,0.001,3075.1,3075.0,36.51404837]
[1765713852706,0.001,3075.1,3075.0,35.41257308]
[1765713852906,0.001,3075.1,3075.0,36.51404837]
[1765713853529,0.001,3075.1,3075.0,35.93357308]
[1765713854107,0.001,3075.1,3075.0,35.99304837]
[1765713854328,0.001,3075.1,3075.0,36.51404837]
[1765713854826,0.001,3075.1,3075.0,35.13114437]
[1765713855028,0.001,3075.1,3075.0,36.10854437]
[1765713855229,0.001,3075.1,3075.0,36.51404837]
[1765713855429,0.001,3075.1,3075.0,9.42550781]
[1765713855632,0.001,3075.1,3075.0,9.84630781]
[1765713855806,0.001,3075.1,3075.0,10.25181181]
[1765713856006,0.001,3075.1,3075.0,5.70881181]
[1765713856207,0.001,3075.1,3075.0,35.70881181]
[1765713856430,0.001,3075.1,3075.0,37.63558206]
[1765713856630,0.001,3075.1,3075.0,35.70881181]
[1765713856937,0.001,3075.1,3075.0,3.83250781]
[1765713857234,0.001,3075.1,3075.0,34.84690781]
[1765713857637,0.001,3075.1,3075.0,35.70881181]
[1765713858512,0.001,3075.1,3075.0,35.25241181]
[1765713858715,0.001,3075.1,3075.0,35.70881181]
[1765713861529,0.001,3075.1,3075.0,7.65790781]
[1765713861730,0.001,3075.1,3075.0,6.46390781]
[1765713861931,0.4613,3075.1,3075.0,3.83250781]
[1765713862325,0.9504,3075.1,3075.0,3.25203252]
[1765713862754,0.9504,3075.1,3075.0,3.83250781]
[1765713863758,0.4613,3075.1,3075.0,3.83250781]
[1765713863937,0.9504,3075.1,3075.0,3.83250781]
[1765713864958,0.9504,3075.1,3074.9,3.25213714]
[1765713865166,0.4891,3075.0,3074.6,3.25238515]
[1765713865349,0.001,3075.1,3074.5,0.002]
[1765713865549,0.4823,3074.6,3074.5,0.002]
[1765713866342,0.9777,3074.6,3074.5,0.002]
[1765713869064,0.001,3074.6,3074.5,0.002]
[1765713869373,0.001,3074.6,3074.5,0.4608]
[1765713869667,0.001,3074.6,3074.5,3.71336139]
[1765713869962,0.001,3074.6,3074.5,5.04254062]
[1765713870163,0.001,3074.6,3074.5,35.44804462]
[1765713870467,0.001,3074.6,3074.5,35.90394462]
[1765713871955,0.001,3074.6,3074.5,36.42494462]
[1765713872338,0.001,3074.6,3074.5,36.55507818]
[1765713872576,0.001,3074.6,3074.5,36.91533748]
[1765713872757,0.001,3074.6,3074.5,36.55507818]
[1765713872958,0.001,3074.6,3074.5,36.91533748]
[1765713873468,0.001,3074.6,3074.5,36.55507818]
[1765713873673,0.001,3074.6,3074.5,36.03407818]
[1765713873870,0.001,3074.6,3074.5,36.55507818]
[1765713875446,0.001,3074.6,3074.5,36.91533748]
[1765713877050,0.001,3074.6,3074.5,36.55507818]
[1765713877667,0.001,3074.6,3074.5,36.91533748]
[1765713878246,0.001,3075.1,3074.8,0.98597929]
[1765713878552,0.001,3075.1,3075.0,31.54106738]
[1765713879071,0.001,3075.1,3075.0,31.99696738]
[1765713879443,0.001,3075.1,3075.0,32.51796738]
[1765713880040,0.001,3075.1,3075.0,35.7699999]
[1765713880445,0.001,3075.1,3075.0,35.90011568]
[1765713880646,0.001,3075.1,3075.0,36.26037498]
[1765713881146,0.001,3075.2,3075.1,30.98597929]
[1765713881370,0.001,3075.2,3075.1,32.08317929]
[1765713881753,0.001,3075.2,3075.1,32.60417929]
[1765713882281,0.001,3075.2,3075.1,35.33510605]
[1765713882883,0.001,3075.2,3075.1,35.85610605]
[1765713883268,0.001,3075.2,3075.1,39.68610605]
[1765713883787,0.001,3075.2,3075.1,35.40020605]
[1765713883983,0.001,3075.2,3075.1,35.85610605]
[1765713884148,0.001,3075.2,3075.1,5.85610605]
[1765713884349,0.9515,3075.2,3075.1,15.62892676]
[1765713884661,0.001,3075.2,3075.1,16.73040205]
[1765713885045,0.4561,3075.2,3075.1,16.73040205]
[1765713885244,0.4561,3075.2,3075.1,34.35340205]
[1765713885448,0.001,3075.2,3075.1,34.99470205]
[1765713885685,0.001,3075.2,3075.1,37.3269763]
[1765713886061,0.001,3075.2,3075.1,37.7828763]
[1765713886466,0.001,3075.2,3075.1,36.6856763]
[1765713887270,0.001,3075.2,3075.1,37.1444763]
[1765713887461,0.001,3075.2,3075.1,37.7828763]
[1765713887981,0.001,3075.2,3075.1,37.3269763]
[1765713888170,0.001,3075.2,3075.1,37.7828763]
[1765713889388,0.001,3075.2,3075.1,35.85610605]
[1765713889583,0.001,3075.2,3075.1,35.95239414]
[1765713890465,0.001,3075.2,3075.1,39.78239414]
[1765713891769,0.001,3075.2,3075.1,40.14265344]
[1765713892153,0.001,3075.2,3075.1,39.78239414]
[1765713893579,0.001,3075.2,3075.1,38.80549414]
[1765713893762,0.001,3075.2,3075.1,39.32649414]
[1765713893964,0.001,3075.2,3075.1,39.78239414]
[1765713895254,0.001,3075.2,3075.1,39.32649414]
[1765713895558,0.001,3075.2,3075.1,39.14399414]
[1765713895779,0.001,3075.2,3075.1,39.33549414]
[1765713895978,0.001,3075.2,3075.1,39.79679414]
[1765713897381,0.001,3075.2,3075.1,45.96679414]
[1765713897597,0.001,3075.2,3075.1,35.96679414]
[1765713900677,0.001,3075.9,3075.1,35.96679414]
[1765713900678,0.495,3076.9,3076.2,0.405504]
[1765713900996,0.495,3076.7,3076.3,31.50697929]
[1765713901372,0.496,3077.6,3076.3,32.00427929]
[1765713901572,0.001,3077.1,3076.3,36.29557929]
[1765713902280,0.001,3077.1,3076.3,32.00427929]
[1765713902484,0.001,3077.1,3076.3,35.25493754]
[1765713902788,0.001,3077.1,3076.3,35.71623754]
[1765713903001,0.1811,3076.7,3076.3,34.23663754]
[1765713903307,0.6761,3076.9,3076.3,35.25493754]
[1765713903510,0.1811,3076.9,3076.3,34.23663754]
[1765713903681,0.9619,3076.4,3076.3,3.83113354]
[1765713903875,0.9619,3076.4,3076.3,3.25065825]
[1765713904070,0.9619,3076.4,3076.3,3.83113354]
[1765713904295,0.9619,3076.4,3076.3,3.25065825]
[1765713904482,0.9619,3076.4,3076.1,3.77177706]
[1765713904483,0.9619,3076.4,3076.2,3.25076392]
[1765713904686,0.495,3076.3,3076.2,3.25076392]
[1765713905003,0.495,3076.3,3075.2,3.25174621]
[1765713905004,0.9609,3076.3,3075.5,3.25149603]
[1765713905188,0.495,3076.3,3075.6,3.2513888]
[1765713905391,0.495,3076.2,3075.6,3.2513888]
[1765713905589,0.495,3076.2,3075.7,0.58047529]
[1765713905797,0.495,3076.2,3075.8,3.25117758]
[1765713906171,0.647,3075.9,3075.8,3.25117758]
[1765713906602,1.142,3075.9,3075.4,0.58047529]
[1765713906810,1.142,3075.9,3075.3,6.50343054]
[1765713906811,0.4911,3075.8,3075.3,6.50343054]
[1765713907213,0.4659,3075.4,3075.3,3.25171527]
[1765713907590,0.9609,3075.4,3075.3,3.25171527]
[1765713908492,0.9609,3075.4,3075.0,0.58247529]
[1765713908805,0.1006,3075.1,3075.0,0.002]
[1765713909007,0.5956,3075.1,3075.0,0.002]
[1765713913805,4.23227104,3075.1,3075.0,0.002]
[1765713915786,4.75327104,3075.1,3075.0,0.002]
[1765713916307,4.23227104,3075.1,3075.0,0.002]
[1765713916523,4.75327104,3075.1,3075.0,0.002]
[1765713916908,4.23227104,3075.1,3075.0,0.002]
[1765713917109,4.75327104,3075.1,3075.0,0.002]
[1765713917499,5.73925033,3075.1,3075.0,0.002]
[1765713918190,5.33374633,3075.1,3075.0,0.002]
[1765713918589,1.50134428,3075.1,3075.0,0.002]
[1765713918782,0.5956,3075.1,3075.0,0.002]
[1765713924207,0.1006,3075.1,3075.0,0.002]
[1765713924516,0.5956,3075.1,3075.0,0.002]
[1765713925811,0.1811,3075.9,3075.0,0.002]
[1765713926002,0.4748,3075.5,3075.0,0.002]
[1765713926391,0.4748,3075.5,3075.0,1.06024753]
[1765713926787,0.465,3075.1,3075.0,1.06024753]
[1765713926992,0.465,3075.1,3075.0,0.002]
[1765713928117,0.9398,3075.1,3075.0,0.002]
[1765713928415,0.4748,3075.4,3075.0,0.002]
[1765713928596,0.4748,3075.8,3075.0,0.002]
[1765713930317,0.465,3075.1,3075.0,0.002]
[1765713930698,0.4649,3075.4,3075.0,0.002]
[1765713931426,0.4544,3075.1,3075.0,0.002]
[1765713931794,0.9193,3075.1,3075.0,0.002]
[1765713933298,0.1811,3075.9,3075.0,1.80148104]
[1765713933605,0.646,3075.9,3075.1,0.1818]
[1765713934007,0.646,3075.9,3075.2,9.75546303]
[1765713934722,0.4649,3075.8,3075.2,6.50364202]
[1765713934894,0.1811,3075.9,3075.2,10.55312228]
[1765713935297,0.001,3076.2,3075.5,0.58047529]
[1765713935498,0.001,3076.2,3075.8,0.4938]
[1765713936003,0.001,3076.2,3075.8,0.58047529]
[1765713936193,0.4659,3076.2,3075.9,1.55443524]
[1765713936400,0.4659,3076.2,3075.8,10.58047529]
[1765713936599,0.4544,3075.9,3075.8,1.10147529]
[1765713936903,0.4544,3075.9,3075.8,0.58047529]
[1765713937705,1.0467,3075.9,3075.8,0.58047529]
[1765713937910,0.001,3076.2,3076.0,0.58047529]
[1765713938235,0.4659,3076.2,3075.9,3.25108098]
[1765713938436,0.6502,3076.0,3075.9,3.25108098]
[1765713938799,1.1151,3076.0,3075.9,3.25108098]
[1765713939541,0.4544,3076.0,3075.9,3.25108098]
[1765713939903,0.4544,3076.0,3075.5,9.7544657]
[1765713940125,0.001,3076.2,3075.6,1.60580186]
[1765713940713,0.4649,3076.1,3075.6,1.60580186]
[1765713942044,0.4649,3076.1,3075.7,6.50258476]
[1765713942404,0.001,3076.2,3075.7,6.50258476]
[1765713942608,0.4659,3076.2,3075.7,6.50258476]
[1765713943436,0.001,3076.2,3075.7,6.50258476]
[1765713943767,0.4649,3076.1,3075.7,6.50258476]
[1765713944052,0.4544,3075.8,3075.7,3.25129238]
[1765713945137,0.4649,3076.1,3075.7,6.50258476]
[1765713946058,0.4544,3075.8,3075.7,3.25129238]
[1765713946939,0.4649,3076.1,3075.7,6.50258476]
[1765713947919,0.001,3076.2,3075.7,9.75387714]
[1765713948147,0.001,3076.2,3075.8,0.01650732]
[1765713948327,0.001,3076.2,3075.9,6.50216196]
[1765713948726,0.4544,3076.0,3075.9,3.25108098]
[1765713949235,0.001,3076.2,3075.9,6.50216196]
[1765713950152,0.4659,3076.2,3075.9,6.50216196]
[1765713950352,0.001,3076.2,3075.9,7.47750739]
[1765713950970,0.001,3076.2,3076.1,0.4938]
[1765713952345,0.001,3076.2,3076.1,3.2508696]
[1765713952662,0.9203,3076.2,3076.1,3.2508696]
[1765713954451,0.9203,3076.2,3075.8,0.58047529]
[1765713955142,0.1274,3075.9,3075.8,0.58047529]
[1765713957274,0.1274,3075.9,3075.8,3.83166197]
[1765713959038,0.001,3076.2,3075.8,8.58067904]
[1765713959242,0.001,3076.2,3075.8,9.04867904]
[1765713959673,0.001,3076.2,3075.8,8.58067904]
[1765713960346,0.4943,3075.9,3075.8,3.83166197]
[1765713960769,0.4528,3076.2,3075.8,7.08284865]
[1765713961956,0.4943,3075.9,3075.8,3.83166197]
[1765713962363,0.001,3076.2,3075.8,7.54724865]
[1765713962565,0.4528,3076.2,3075.8,7.54724865]
[1765713962750,0.001,3076.2,3075.8,8.67909799]
[1765713962941,0.001,3076.2,3076.1,0.4644]
[1765713963271,0.4943,3075.9,3075.8,3.83166197]
[1765713963675,0.4943,3075.9,3075.8,3.83366197]
[1765713963872,1.1303,3075.9,3075.8,3.25318668]
[1765713965485,0.001,3076.2,3075.8,6.96877336]
[1765713965693,0.001,3076.2,3075.9,0.01650573]
[1765713965854,0.001,3076.2,3075.8,6.96877336]
[1765713966490,0.4528,3076.2,3075.9,0.01650573]
[1765713966649,0.001,3076.2,3075.8,6.96877336]
[1765713966855,0.001,3076.2,3075.8,7.43677336]
[1765713967051,0.001,3076.2,3075.9,1.64927435]
[1765713967286,0.001,3076.2,3076.1,0.4644]
[1765713967668,0.001,3076.2,3076.1,0.9324]
[1765713968074,0.001,3076.2,3076.1,4.29574489]
[1765713968485,0.001,3076.2,3076.1,4.31224638]
[1765713968682,0.001,3076.2,3076.1,5.63821757]
[1765713968997,0.001,3076.2,3076.1,6.04372157]
[1765713969152,0.001,3076.2,3076.1,36.02722008]
[1765713969777,0.001,3077.3,3076.5,0.405504]
[1765713970054,0.001,3077.3,3077.0,34.29479404]
[1765713970277,0.001,3077.3,3077.0,35.8835931]
[1765713970487,0.001,3077.3,3077.0,36.3515931]
[1765713970659,0.001,3077.3,3077.0,36.7570971]
[1765713971960,0.4953,3077.1,3077.0,4.8991931]
[1765713972161,0.4953,3077.1,3077.0,3.83039404]
[1765713972363,0.9471,3077.1,3077.0,3.83039404]
[1765713972662,0.001,3077.1,3077.0,4.29479404]
[1765713972857,0.001,3077.1,3077.0,34.76279404]
[1765713973057,0.4953,3077.1,3077.0,4.35039404]
[1765713973257,0.001,3077.1,3077.0,4.35039404]
[1765713973871,0.001,3077.1,3077.0,4.81479404]
[1765713975588,0.1842,3078.9,3077.7,30.405504]
[1765713975885,0.1842,3078.9,3077.8,34.60492396]
[1765713976097,0.1842,3078.9,3077.8,33.62499231]
[1765713976300,0.1842,3078.9,3077.8,35.6874533]
[1765713977003,0.1842,3078.9,3077.8,11.3164533]
[1765713977164,0.4518,3078.6,3077.8,11.8364533]
[1765713979070,0.1842,3078.9,3077.8,35.6874533]
[1765713980896,0.4518,3079.0,3077.8,35.6874533]
[1765713981056,0.1842,3078.9,3077.8,34.6994533]
[1765713981381,0.4518,3078.6,3077.8,35.2194533]
[1765713981599,0.4518,3078.6,3077.8,31.2104533]
[1765713981972,0.1842,3078.9,3077.8,31.2104533]
[1765713982174,0.4518,3078.4,3077.8,31.2104533]
[1765713982364,0.4518,3078.4,3077.8,30.2849493]
[1765713982570,0.4518,3078.4,3077.8,30.8049493]
[1765713982774,0.4518,3078.4,3077.8,13.4105493]
[1765713983079,1.0581,3077.9,3077.8,3.8295493]
[1765713983461,1.0581,3077.9,3077.8,3.24907401]
[1765713983663,1.0581,3077.9,3077.8,3.8295493]
[1765713985190,0.4953,3077.9,3077.8,3.8295493]
[1765713985367,1.0581,3077.9,3077.8,3.8295493]
[1765713985775,0.4953,3077.9,3077.8,3.8295493]
[1765713987396,0.001,3077.9,3077.8,3.8295493]
[1765713987573,1.06,3077.9,3077.8,3.8295493]
[1765713988099,1.06,3077.9,3077.8,35.53002399]
[1765713988100,0.001,3077.9,3077.8,35.53002399]
[1765713988603,0.001,3077.9,3077.8,35.93552799]
[1765713990819,0.001,3077.9,3077.8,22.28752799]
[1765713991678,0.001,3077.9,3077.8,5.93552799]
[1765713991875,0.001,3077.9,3077.8,35.9519846]
[1765713992074,0.001,3077.9,3077.8,35.93552799]
[1765713992703,0.001,3077.9,3077.8,23.57052799]
[1765713992996,0.001,3077.9,3077.8,35.93552799]
[1765713993818,0.001,3077.9,3077.8,31.96152799]
[1765713993979,0.001,3077.9,3077.8,10.73962399]
[1765713994307,0.4973,3077.9,3077.8,7.60862399]
[1765713994503,0.001,3077.9,3077.8,8.12862399]
[1765713994810,0.001,3077.9,3077.8,9.46832799]
[1765713995015,0.001,3077.9,3077.8,36.44932799]
[1765713995424,0.001,3077.9,3077.8,37.00326859]
[1765713996719,0.001,3077.9,3077.8,37.83753737]
[1765713997218,0.001,3078.7,3078.1,0.405504]
[1765713997429,0.001,3078.7,3078.4,31.55057929]
[1765713997919,0.001,3078.7,3078.4,35.82006063]
[1765713998724,0.001,3078.7,3078.4,36.16879322]
[1765713998930,0.001,3078.7,3078.6,30.98597929]
[1765713999102,0.001,3078.7,3078.6,32.97204057]
[1765713999304,0.001,3078.7,3078.6,34.19921526]
[1765713999902,0.001,3078.7,3078.6,37.44744497]
[1765714000691,0.001,3079.2,3079.0,30.0]
[1765714000920,0.001,3079.2,3079.1,42.27519075]
[1765714001222,0.001,3079.2,3079.1,33.27980798]
[1765714001397,0.001,3079.2,3079.1,34.44650354]
[1765714002015,0.001,3079.2,3079.1,36.70710579]
[1765714002328,0.001,3079.2,3079.1,37.02056519]
[1765714003917,0.001,3079.2,3079.1,37.57450579]
[1765714004616,0.001,3079.2,3079.1,38.06004198]
[1765714004816,0.001,3079.2,3079.1,37.02056519]
[1765714005017,0.001,3079.2,3079.1,37.57450579]
[1765714005690,0.001,3079.2,3079.1,38.06004198]
[1765714006391,0.001,3079.2,3079.1,37.57450579]
[1765714006803,0.001,3079.2,3079.1,38.06004198]
[1765714007206,0.001,3080.4,3079.3,0.405504]
[1765714007446,0.001,3080.4,3080.3,31.54936738]
[1765714007725,0.001,3080.4,3080.3,32.82844207]
[1765714008017,0.001,3080.4,3080.3,36.5419791]
[1765714008230,0.9653,3080.4,3080.3,3.82691232]
[1765714008514,0.9653,3080.4,3080.3,33.82691232]
[1765714008925,0.4973,3080.4,3080.3,33.82691232]
[1765714009109,0.4973,3080.4,3080.3,3.82691232]
[1765714009313,0.001,3080.4,3080.3,34.23241632]
[1765714009815,0.001,3080.4,3080.3,16.44241632]
[1765714010017,0.4973,3080.4,3080.3,16.96141632]
[1765714010201,0.4973,3080.4,3080.3,34.75141632]
[1765714010393,0.001,3080.4,3080.3,34.75141632]
[1765714011002,0.4973,3080.4,3080.3,34.23241632]
[1765714011207,0.9653,3080.4,3080.3,34.75141632]
[1765714011411,0.4973,3080.4,3080.3,34.75141632]
[1765714011614,0.9653,3080.4,3080.3,4.75141632]